bitfinex/quotes_ETHUSD_20241217
["timestamp","ask_amount","ask_price","bid_price","bid_amount"]
[1734445280875,0.7831,4004.7,4003.0,0.7686]
[1734445281081,2.4974,4004.2,4003.0,0.7686]
[1734445281390,2.49722,4004.5,4003.0,0.7686]
[1734445281576,0.7831,4004.7,4003.0,0.7686]
[1734445283434,0.7831,4005.0,4003.4,3.0]
[1734445283593,0.7831,4005.0,4003.5,0.7686]
[1734445283813,2.49665,4005.4,4003.5,0.7686]
[1734445284013,3.27975,4005.4,4003.6,0.7935723]
[1734445284214,0.04607258,4005.3,4004.0,0.7686]
[1734445284428,2.54277258,4005.3,4004.0,0.7686]
[1734445284802,2.49677,4005.2,4004.0,0.7686]
[1734445285005,2.54283138,4005.2,4004.0,0.7686]
[1734445285250,0.04606138,4005.2,4004.0,0.7686]
[1734445285548,0.55,4005.3,4004.0,0.7686]
[1734445285716,0.7831,4005.2,4003.6,0.7686]
[1734445285924,0.7831,4004.4,4002.8,0.7686]
[1734445286349,0.04626623,4004.3,4002.8,0.7686]
[1734445286648,2.49746,4004.1,4002.8,0.7686]
[1734445287009,0.04623762,4004.0,4002.8,0.7686]
[1734445287574,0.7831,4004.4,4002.8,0.7686]
[1734445287759,2.49796,4003.3,4002.8,0.7686]
[1734445288103,0.7831,4004.4,4001.8,2.87148784]
[1734445288104,0.04599768,4003.2,4001.9,0.7686]
[1734445288613,2.49819,4002.9,4001.9,0.7686]
[1734445288845,0.04580611,4003.1,4001.9,0.7686]
[1734445288846,2.49842,4002.6,4001.9,0.7686]
[1734445289365,0.04573885,4002.5,4001.9,0.7686]
[1734445289713,2.49829,4002.8,4001.9,0.7686]
[1734445290028,2.49804,4003.2,4001.9,0.7686]
[1734445290029,2.49832,4002.7,4001.9,0.7686]
[1734445290248,2.54357001,4002.7,4001.9,0.7686]
[1734445292259,0.04525001,4002.7,4001.9,0.7686]
[1734445292454,3.0,4003.4,4001.9,0.7686]
[1734445292656,0.04515356,4002.6,4001.9,0.7686]
[1734445292899,0.7831,4003.5,4001.9,0.7686]
[1734445293047,0.04514235,4002.5,4002.0,0.36400878]
[1734445293245,0.7755,4003.9,4002.0,0.36400878]
[1734445293246,0.7755,4003.9,4002.2,0.8093]
[1734445293444,2.49771,4003.7,4002.2,0.8093]
[1734445293955,0.04526564,4003.6,4002.2,0.8093]
[1734445294359,0.04526564,4003.6,4002.4,3.8093]
[1734445294555,2.49744,4004.1,4002.5,0.66807878]
[1734445294757,0.7755,4004.3,4002.6,0.8093]
[1734445294758,0.0452695,4003.5,4002.6,0.8093]
[1734445295049,2.4976,4003.9,4002.6,0.8093]
[1734445295263,0.0452583,4003.4,4002.6,0.8093]
[1734445295464,2.4976,4003.9,4002.6,0.8093]
[1734445295656,0.04524709,4003.3,4002.6,0.8093]
[1734445295858,2.4976,4003.9,4002.6,0.8093]
[1734445296089,0.04523588,4003.2,4002.6,0.8093]
[1734445296286,2.49744,4004.1,4002.6,0.8093]
[1734445296486,0.04522467,4003.1,4002.6,0.8093]
[1734445296804,2.49744,4004.1,4002.6,0.8093]
[1734445296805,2.49731,4004.4,4002.8,2.87148784]
[1734445296972,3.2726,4004.7,4003.0,0.8093]
[1734445297304,0.7755,4004.7,4003.0,0.8093]
[1734445297603,0.04410666,4004.6,4003.0,0.8093]
[1734445298355,2.49733,4004.3,4003.0,0.8093]
[1734445298771,0.04406186,4004.2,4003.0,0.8093]
[1734445299999,2.54145186,4004.2,4003.0,0.8093]
[1734445300607,2.4975,4004.0,4003.0,0.8093]
[1734445300966,0.04424879,4003.9,4003.0,0.8093]
[1734445301595,2.54181879,4003.9,4003.0,0.8093]
[1734445301902,0.04423758,4003.8,4003.0,0.8093]
[1734445302203,2.49732,4004.3,4003.0,0.8093]
[1734445302608,0.04428239,4004.2,4003.1,0.02497419]
[1734445302847,0.04428239,4004.2,4003.0,0.8093]
[1734445302982,0.7755,4005.3,4003.4,0.8093]
[1734445303184,0.7755,4005.3,4003.3,3.0]
[1734445303185,0.04424112,4004.1,4003.6,0.8093]
[1734445303534,0.7755,4005.3,4003.8,3.8093]
[1734445303881,0.04425406,4005.2,4003.8,3.8093]
[1734445304627,2.4969,4005.0,4003.8,0.8093]
[1734445305200,0.0445886,4005.1,4003.8,0.8093]
[1734445305385,2.54156621,4004.9,4003.8,0.8093]
[1734445305579,2.497,4004.9,4003.8,0.8093]
[1734445305827,0.04455501,4004.8,4003.8,0.8093]
[1734445306183,2.49685,4005.1,4003.8,0.8093]
[1734445306386,2.49719,4004.5,4003.8,0.8093]
[1734445306828,0.04453528,4004.4,4003.8,0.8093]
[1734445307401,2.49733,4004.3,4003.8,0.8093]
[1734445307711,0.04441268,4004.2,4003.8,0.8093]
[1734445308226,0.55,4004.9,4003.8,0.8093]
[1734445308432,0.04440147,4004.1,4003.8,0.8093]
[1734445308728,2.49732,4004.3,4003.8,0.8093]
[1734445308953,0.04439027,4004.0,4003.8,0.8093]
[1734445309230,2.49725,4004.4,4003.8,0.8093]
[1734445309529,0.04437907,4003.9,4002.9,0.7848]
[1734445309731,2.49714,4004.6,4002.9,0.7848]
[1734445309939,0.04436786,4003.8,4003.1,0.7848]
[1734445310087,2.49719,4004.5,4003.1,0.7848]
[1734445310401,0.04426646,4003.7,4003.1,0.7848]
[1734445310607,2.49719,4004.5,4003.1,0.7848]
[1734445311004,2.54161488,4004.4,4003.1,0.7848]
[1734445311601,0.04434488,4004.4,4003.1,0.7848]
[1734445311819,2.19015288,4004.4,4003.1,0.7848]
[1734445312047,2.49755,4004.0,4003.1,0.7848]
[1734445312192,2.49757,4003.9,4003.1,0.7848]
[1734445312536,2.49757,4003.9,4002.0,0.36400878]
[1734445312537,0.37004008,4003.8,4002.1,0.7848]
[1734445312842,2.49788,4003.4,4002.1,0.7848]
[1734445313213,2.49776,4003.6,4002.1,0.7848]
[1734445313408,0.04438199,4003.3,4002.2,2.87148784]
[1734445313719,2.49763,4003.8,4002.3,0.7848]
[1734445313917,0.04437078,4003.2,4002.3,0.7848]
[1734445314089,2.49767,4003.8,4002.3,3.0]
[1734445314434,0.04411404,4003.1,4002.4,0.7848]
[1734445314618,3.5246616,4003.8,4002.4,0.7848]
[1734445314936,0.04410283,4003.0,4002.4,0.7848]
[1734445315240,1.0269916,4003.7,4002.4,1.33303057]
[1734445315391,0.04407156,4002.9,4002.4,1.33303057]
[1734445315905,1.0269916,4003.7,4002.4,1.33303057]
[1734445316093,0.04406035,4002.8,4002.4,1.33303057]
[1734445316295,1.0269916,4003.6,4002.5,0.7848]
[1734445316490,1.0269916,4003.7,4002.7,0.7848]
[1734445318240,1.0269916,4003.6,4002.7,0.7848]
[1734445318949,3.1781468,4003.6,4002.7,0.7848]
[1734445319140,0.86046208,4003.5,4002.7,0.7848]
[1734445319324,0.86046208,4003.4,4002.7,0.7848]
[1734445319637,5.09090652,4004.1,4002.6,3.43330306]
[1734445319638,1.0269916,4003.8,4003.1,0.7848]
[1734445319851,1.0269916,4003.8,4003.0,3.0]
[1734445319852,1.0269916,4003.9,4003.4,0.7848]
[1734445319995,3.87887554,4004.6,4003.5,0.7848]
[1734445319996,1.0269916,4004.2,4003.5,0.7848]
[1734445320346,1.0269916,4004.5,4003.8,0.7848]
[1734445320505,1.0269916,4004.7,4003.9,0.311814]
[1734445320705,0.86219687,4004.6,4004.0,0.7848]
[1734445321027,0.86219687,4004.7,4004.0,0.7848]
[1734445321226,1.0269916,4004.7,4004.0,0.7848]
[1734445321597,1.5404874,4004.8,4004.0,0.7848]
[1734445321598,3.18251935,4004.6,4004.0,0.7848]
[1734445321795,0.86233996,4004.5,4004.1,0.7848]
[1734445322108,1.0269916,4004.7,4004.1,0.7848]
[1734445322291,1.0269916,4004.5,4004.1,0.7848]
[1734445322491,0.86225394,4004.4,4004.1,0.7848]
[1734445323040,1.0269916,4004.5,4004.1,0.7848]
[1734445323721,1.0269916,4004.7,4004.1,0.7848]
[1734445323903,2.32020444,4004.6,4004.1,0.7848]
[1734445324102,3.18234633,4004.6,4004.1,0.7848]
[1734445324303,1.0269916,4004.6,4004.1,0.7848]
[1734445324531,1.0269916,4004.8,4004.1,1.2244614]
[1734445325545,0.86196716,4004.7,4004.1,1.2244614]
[1734445325735,1.0269916,4004.9,4004.1,1.2244614]
[1734445326045,1.0269916,4004.9,4004.2,0.7536]
[1734445326436,0.86184945,4004.8,4004.2,0.7536]
[1734445326612,1.0269916,4005.0,4004.2,0.7536]
[1734445326955,1.0269916,4005.0,4004.2,0.93410754]
[1734445327256,0.86167712,4004.9,4004.2,0.7536]
[1734445327405,1.0269916,4005.1,4004.4,0.7536]
[1734445327606,1.0269916,4005.1,4003.3,0.29145021]
[1734445327607,1.0269916,4005.3,4004.6,3.0]
[1734445327847,1.1903036,4005.6,4004.7,0.77856569]
[1734445328047,0.03994062,4005.2,4004.7,0.77856569]
[1734445328361,1.1903036,4005.6,4004.9,0.7536]
[1734445328362,0.03992942,4005.1,4004.9,0.7536]
[1734445328750,0.163312,4005.6,4004.9,0.7536]
[1734445329079,0.03997421,4005.5,4004.9,0.7536]
[1734445330722,0.03997421,4005.5,4005.1,0.7536]
[1734445330925,0.03997421,4005.5,4005.2,0.76709888]
[1734445331152,0.163312,4005.6,4005.4,0.7536]
[1734445331573,0.163312,4005.6,4005.5,0.7536]
[1734445333261,0.163312,4005.6,4004.9,0.7536]
[1734445333663,0.04091478,4005.5,4004.9,0.7536]
[1734445334175,0.04091478,4005.5,4004.9,3.7536]
[1734445334378,0.04091478,4005.5,4005.1,0.7536]
[1734445334578,0.163312,4005.6,4005.1,0.7536]
[1734445336696,0.03929924,4005.5,4004.3,0.7536]
[1734445338503,2.49688,4005.0,4004.3,0.7536]
[1734445338659,0.03889108,4004.9,4004.3,0.7536]
[1734445338998,2.53586108,4004.9,4003.4,0.7714]
[1734445339160,2.53586108,4004.9,4003.5,0.310474]
[1734445339556,0.03889108,4004.9,4003.5,0.310474]
[1734445339970,0.86040291,4004.8,4003.6,0.01352844]
[1734445340156,0.03889108,4004.9,4003.7,3.10473999]
[1734445340359,0.03889108,4004.9,4003.7,0.7714]
[1734445340598,2.15116361,4004.8,4003.7,0.7714]
[1734445340797,2.49713,4004.6,4003.7,0.7714]
[1734445340953,2.49713,4004.6,4003.0,0.7714]
[1734445340954,2.49733,4004.3,4003.0,0.7714]
[1734445341157,0.03819078,4004.2,4003.0,0.7714]
[1734445341387,0.8607167,4004.1,4003.0,0.7714]
[1734445341588,2.49762,4003.9,4003.0,0.7714]
[1734445341781,0.8607167,4003.8,4003.0,0.7714]
[1734445341983,0.03810082,4003.8,4003.0,0.7714]
[1734445342396,0.86083978,4003.7,4003.0,0.7714]
[1734445342782,2.86768879,4004.4,4003.0,0.7714]
[1734445342783,0.03803325,4003.6,4003.0,0.7714]
[1734445342981,0.03803325,4003.6,4003.1,0.7714]
[1734445343183,1.0269916,4004.4,4003.1,0.7714]
[1734445343498,0.03729881,4004.3,4003.1,0.7714]
[1734445343885,0.86074134,4004.2,4003.1,0.7714]
[1734445344085,0.03727641,4004.1,4003.1,0.7714]
[1734445344693,1.0269916,4004.4,4003.1,0.7714]
[1734445345007,3.2166408,4004.3,4003.1,0.7714]
[1734445345205,0.03753972,4004.3,4003.1,0.7714]
[1734445345517,0.03753972,4004.3,4003.2,1.11218364]
[1734445345670,1.0269916,4005.0,4003.4,0.7714]
[1734445345870,0.03761693,4004.9,4003.7,3.0]
[1734445346170,0.86074491,4004.8,4003.8,0.7714]
[1734445346375,0.03759453,4004.7,4003.8,0.7714]
[1734445346782,0.03759453,4004.7,4003.9,0.79636984]
[1734445346989,1.0269916,4005.1,4003.9,0.7714]
[1734445347281,1.0269916,4005.3,4003.9,0.7714]
[1734445347526,0.03778599,4005.2,4003.9,0.7714]
[1734445348405,0.8608532,4005.1,4003.9,0.7714]
[1734445348612,1.92563079,4005.2,4003.9,0.7714]
[1734445348925,2.19008459,4005.1,4003.9,0.7714]
[1734445349085,0.03777479,4005.1,4003.9,0.7714]
[1734445349284,0.86086744,4005.0,4003.9,0.7714]
[1734445349470,4.72990079,4005.6,4003.9,1.14854]
[1734445349471,0.03824404,4004.9,4003.9,1.14854]
[1734445349679,4.64928288,4004.8,4003.9,0.7714]
[1734445349932,0.7976,4004.9,4003.1,0.12581746]
[1734445349933,2.49726,4004.4,4003.1,0.12581746]
[1734445350220,0.89958557,4004.3,4003.2,0.7714]
[1734445350373,0.7976,4004.2,4003.2,0.7714]
[1734445350574,0.03835012,4004.1,4003.2,0.7714]
[1734445350827,2.4975,4004.0,4003.2,0.7714]
[1734445351124,3.39704605,4003.9,4003.2,0.7714]
[1734445351275,0.89948605,4003.9,4002.9,0.7714]
[1734445351679,0.03832772,4003.9,4002.9,0.7714]
[1734445351881,1.0269916,4004.4,4003.0,0.35401768]
[1734445352174,0.0375698,4004.3,4003.1,0.81336285]
[1734445352416,0.0375698,4004.3,4003.1,0.7995]
[1734445352771,0.0375698,4004.3,4003.2,0.7995]
[1734445354725,0.0375698,4004.3,4003.2,0.82447254]
[1734445355511,0.0375698,4004.3,4003.3,1.45068048]
[1734445355719,0.0375698,4004.3,4003.5,0.7811]
[1734445356317,1.0269916,4004.4,4003.5,0.7811]
[1734445356510,0.037911,4004.3,4003.5,0.7811]
[1734445356695,2.48998892,4005.3,4003.8,0.7811]
[1734445356696,1.0269916,4004.9,4003.8,0.7811]
[1734445357008,0.0380272,4004.8,4003.8,0.7811]
[1734445357308,0.7682,4004.8,4003.8,0.7811]
[1734445357505,0.0380762,4004.7,4003.4,0.7811]
[1734445357739,2.49712,4004.6,4003.4,0.7811]
[1734445357883,1.0269916,4004.3,4003.4,0.7811]
[1734445358534,0.0380538,4004.5,4002.5,0.7811]
[1734445358535,0.7682,4004.1,4002.5,0.7811]
[1734445358714,2.49769,4003.7,4002.5,0.7811]
[1734445358883,0.03779244,4003.6,4002.5,0.7811]
[1734445359316,0.7682,4003.5,4002.5,0.7811]
[1734445359521,0.80598124,4003.5,4002.5,0.7811]
[1734445360827,0.03778124,4003.5,4002.5,0.7811]
[1734445361234,0.7682,4003.9,4002.6,0.0249751]
[1734445361526,1.0269916,4004.1,4002.7,0.7811]
[1734445361734,0.03559704,4004.0,4002.9,0.7811]
[1734445364013,0.03559704,4004.0,4003.0,0.90401768]
[1734445364214,0.03559704,4004.0,4003.1,3.7811]
[1734445364456,0.03559704,4004.0,4003.3,0.7811]
[1734445364658,0.03559704,4004.0,4003.4,0.35401768]
[1734445364824,1.0269916,4004.6,4003.5,0.7811]
[1734445365249,0.03632554,4004.5,4003.6,0.7811]
[1734445365447,0.03632554,4004.5,4003.7,0.7811]
[1734445365613,0.03632554,4004.5,4003.8,0.70064499]
[1734445365813,0.03632554,4004.5,4003.9,0.7811]
[1734445369135,0.82832554,4004.5,4002.0,3.91599081]
[1734445369355,0.82832554,4004.5,4002.1,0.35401768]
[1734445369663,1.0269916,4003.9,4002.2,0.7891]
[1734445369872,1.0269916,4003.9,4002.4,0.7891]
[1734445370025,2.1545075,4004.0,4002.4,0.7891]
[1734445370026,0.03664851,4003.8,4002.4,0.7891]
[1734445370217,0.03664851,4003.8,4002.7,0.7891]
[1734445370534,0.03664851,4003.8,4002.8,0.91755832]
[1734445370720,1.0269916,4003.9,4002.8,0.91755832]
[1734445370920,0.03649684,4003.7,4002.8,0.91755832]
[1734445371120,1.0269916,4003.9,4002.8,0.91755832]
[1734445371358,0.03648564,4003.6,4002.8,0.91755832]
[1734445371563,1.0269916,4003.9,4002.9,0.40416044]
[1734445371865,0.03647443,4003.5,4002.9,0.40416044]
[1734445372169,1.8189916,4003.7,4002.8,0.7891]
[1734445372353,0.03627757,4003.4,4002.8,0.7891]
[1734445372522,2.15416038,4003.6,4002.8,0.7891]
[1734445372724,0.03605059,4003.3,4002.8,0.7891]
[1734445373078,1.0269916,4004.0,4002.9,0.37891]
[1734445373365,0.03603939,4003.2,4002.9,0.37891]
[1734445373677,1.0269916,4004.1,4002.9,0.37891]
[1734445373822,1.0269916,4003.9,4002.8,0.7891]
[1734445374020,2.1537801,4003.8,4002.8,0.7891]
[1734445374223,1.29226806,4003.7,4002.8,0.7891]
[1734445374522,0.03603904,4003.6,4002.8,0.7891]
[1734445375573,0.03603904,4003.6,4001.5,0.1257251]
[1734445375574,2.3193722,4003.5,4002.4,0.7891]
[1734445375737,1.0269916,4003.2,4002.4,0.7891]
[1734445376060,3.21667583,4003.1,4002.4,0.7891]
[1734445376231,3.18094876,4003.0,4002.4,0.7891]
[1734445376433,0.86157656,4002.9,4002.4,0.7891]
[1734445376632,0.86157656,4002.9,4001.4,2.87133224]
[1734445376633,0.82770465,4002.9,4001.5,0.7891]
[1734445376860,0.82770465,4002.9,4001.6,0.36604322]
[1734445377076,0.03570465,4002.9,4001.7,0.7891]
[1734445377380,0.03570465,4002.9,4002.1,0.7891]
[1734445377539,1.0269916,4003.4,4002.1,0.7891]
[1734445377723,0.03426809,4003.3,4002.2,0.7891]
[1734445377923,1.0269916,4003.7,4002.5,3.0]
[1734445378158,2.86208879,4004.1,4002.6,0.7891]
[1734445378159,0.89588769,4003.6,4002.6,0.7891]
[1734445378540,0.03427158,4003.6,4002.6,0.7891]
[1734445379465,0.03427158,4003.6,4002.9,2.87133224]
[1734445379667,0.03427158,4003.6,4003.1,0.7891]
[1734445379965,2.60562125,4004.7,4003.0,3.0]
[1734445379966,1.0269916,4004.6,4003.3,0.7891]
[1734445380271,0.03457831,4004.5,4003.3,0.7891]
[1734445380571,3.1814949,4004.4,4003.3,0.7891]
[1734445380777,0.03478689,4004.3,4003.3,0.7891]
[1734445381483,0.86213318,4004.2,4003.3,0.7891]
[1734445381810,0.89689766,4004.1,4003.3,0.7891]
[1734445382141,3.18276321,4004.0,4003.3,0.7891]
[1734445382481,0.03524924,4003.9,4003.3,0.7891]
[1734445382682,0.86213318,4003.8,4003.3,0.7891]
[1734445383037,0.03522684,4003.7,4003.3,0.7891]
[1734445383481,2.3552874,4004.2,4003.3,0.7891]
[1734445383482,1.0269916,4003.9,4003.3,0.7891]
[1734445384082,0.03509244,4003.8,4003.3,0.7891]
[1734445384783,0.86298082,4003.7,4003.3,0.7891]
[1734445384987,0.03507003,4003.6,4003.3,0.7891]
[1734445385282,1.0269916,4003.8,4003.3,0.7891]
[1734445385448,0.03505883,4003.5,4003.3,0.7891]
[1734445385654,1.0269916,4003.8,4003.3,0.7891]
[1734445385987,1.0269916,4003.9,4003.3,0.7891]
[1734445386193,0.03509244,4003.8,4003.3,0.7891]
[1734445386541,0.86302072,4003.7,4003.3,0.7891]
[1734445386839,0.0351465,4003.7,4003.3,0.7891]
[1734445387256,1.0269916,4004.0,4003.1,0.8089]
[1734445387457,0.0351353,4003.6,4003.2,0.70255576]
[1734445387672,1.0269916,4004.0,4003.1,0.8089]
[1734445387879,0.03512409,4003.5,4003.1,0.8089]
[1734445388046,1.0269916,4003.8,4003.1,0.8089]
[1734445388249,0.03511289,4003.4,4003.1,0.8089]
[1734445388458,1.0269916,4003.8,4003.1,0.8089]
[1734445388664,0.03510168,4003.3,4003.1,0.8089]
[1734445388867,1.0269916,4003.8,4003.1,0.8089]
[1734445389099,0.03509047,4003.2,4003.1,0.8089]
[1734445389560,1.0269916,4003.8,4003.1,0.8089]
[1734445389757,4.7e-07,4003.2,4003.1,0.8089]
[1734445389988,2.07008879,4004.3,4003.2,0.8089]
[1734445389989,1.0269916,4004.0,4003.2,0.8089]
[1734445390213,3.18446343,4004.1,4003.2,0.8089]
[1734445390575,0.86298873,4004.0,4003.2,0.82505877]
[1734445390966,1.0269916,4004.2,4003.4,3.55]
[1734445391175,1.0269916,4004.2,4003.9,3.8089]
[1734445391372,1.5404874,4004.4,4004.1,0.8089]
[1734445392376,2.07008879,4004.5,4004.3,2.87133224]
[1734445392377,1.11334619,4004.5,4004.3,2.87133224]
[1734445392578,6.19e-06,4004.5,4004.4,4.3589]
[1734445392777,0.163312,4005.6,4004.5,0.55]
[1734445393002,0.163312,4005.6,4004.4,3.8089]
[1734445393214,0.163312,4005.6,4004.4,0.8089]
[1734445393507,0.8148,4005.5,4003.9,3.8089]
[1734445393688,0.8148,4005.5,4003.9,0.8089]
[1734445394264,0.8148,4005.5,4003.3,2.87133224]
[1734445394465,0.8148,4005.1,4003.4,0.8089]
[1734445394866,0.8148,4004.8,4003.4,0.8089]
[1734445395483,3.31184,4004.8,4003.4,0.8089]
[1734445396282,4.29522405,4004.7,4003.4,0.8089]
[1734445396616,3.42383422,4004.5,4003.1,1.47692322]
[1734445396853,5.23857835,4004.9,4002.3,2.87133224]
[1734445396854,2.6091812,4004.3,4002.3,2.87133224]
[1734445397026,0.8148,4004.2,4002.4,0.8089]
[1734445397211,0.8012,4003.9,4002.4,0.8089]
[1734445397523,1.29661252,4003.8,4002.4,0.8089]
[1734445397818,0.87504074,4003.8,4002.4,0.8089]
[1734445398023,0.8012,4003.6,4001.9,0.8161]
[1734445398322,0.87470588,4003.5,4001.9,0.8161]
[1734445398498,0.03156232,4003.5,4001.9,0.8161]
[1734445398836,2.1078589,4003.4,4001.9,1.1397587]
[1734445399184,0.03153991,4003.3,4001.9,0.8161]
[1734445399416,2.1078589,4003.2,4002.0,0.36874322]
[1734445399585,2.1393876,4003.2,4002.0,0.36874322]
[1734445399786,2.1078589,4003.1,4002.0,0.36874322]
[1734445399988,0.03151749,4003.1,4002.1,0.8161]
[1734445400321,0.8012,4003.6,4002.1,0.8161]
[1734445400524,0.03116985,4003.0,4002.4,3.0]
[1734445400739,0.84304613,4003.5,4002.5,1.1397587]
[1734445400740,1.2645692,4003.5,4002.5,1.1397587]
[1734445400944,2.08703646,4003.9,4002.5,1.1397587]
[1734445401244,1.26443603,4003.8,4002.5,1.1397587]
[1734445401416,0.03109378,4003.8,4002.6,0.02497752]
[1734445401614,0.03109378,4003.8,4002.9,3.0]
[1734445401922,2.08703646,4003.9,4003.0,0.8161]
[1734445402809,2.07703646,4003.9,4003.0,0.8161]
[1734445403039,0.8012,4004.4,4003.0,0.8161]
[1734445403549,0.8012,4005.1,4003.1,0.55]
[1734445403705,0.03131553,4004.3,4003.5,0.55]
[1734445403910,0.8012,4005.1,4003.5,0.55]
[1734445404373,0.03176047,4005.0,4003.6,0.8161]
[1734445404908,0.03176047,4005.0,4003.5,0.55]
[1734445404909,0.03176047,4005.0,4003.9,3.0]
[1734445405108,0.03176047,4005.0,4004.0,0.8161]
[1734445405344,0.03176047,4005.0,4004.0,1.48484322]
[1734445405953,0.03176047,4005.0,4004.5,0.8161]
[1734445406249,2.10734973,4005.2,4004.5,0.8161]
[1734445406440,0.03026981,4004.9,4004.5,0.8161]
[1734445406612,2.39864412,4005.5,4004.5,0.8161]
[1734445406944,1.04310253,4005.3,4004.5,1.48484322]
[1734445407145,1.90764951,4005.4,4004.5,1.48484322]
[1734445407351,0.83399032,4005.2,4004.5,1.48484322]
[1734445407535,0.03055666,4005.4,4004.9,3.8161]
[1734445407711,0.163312,4005.6,4004.9,3.8161]
[1734445407912,0.163312,4005.6,4005.0,0.66874322]
[1734445408384,0.03079871,4005.5,4005.0,0.66874322]
[1734445408857,0.03079871,4005.5,4005.3,2.87133224]
[1734445409183,0.163312,4005.6,4005.4,3.0]
[1734445409636,0.163312,4005.6,4005.0,0.66874322]
[1734445409830,0.163312,4005.6,4005.1,0.73561755]
[1734445410656,0.163312,4005.6,4004.9,0.8161]
[1734445411061,0.03133557,4005.5,4004.9,0.8161]
[1734445411374,0.03132941,4005.4,4004.5,0.8161]
[1734445411664,0.163312,4005.6,4004.5,0.8161]
[1734445412024,0.03123524,4005.5,4004.5,0.8161]
[1734445412248,0.03123524,4005.5,4004.6,0.66874322]
[1734445412770,0.03123524,4005.5,4004.9,3.0]
[1734445413972,0.03123524,4005.5,4004.6,0.66874322]
[1734445414571,0.03123524,4005.5,4003.8,3.91599081]
[1734445414730,0.8012,4005.4,4003.9,0.8161]
[1734445414930,0.03109746,4005.3,4003.9,0.8161]
[1734445415325,0.03109746,4005.3,4004.3,2.87133224]
[1734445415561,0.163312,4005.6,4004.4,0.8161]
[1734445415777,0.03099594,4005.2,4004.5,0.36874322]
[1734445415935,0.163312,4005.6,4004.5,0.36874322]
[1734445416146,0.03098474,4005.1,4004.5,0.36874322]
[1734445416345,0.163312,4005.6,4004.5,0.36874322]
[1734445416656,0.03097354,4005.0,4004.5,0.36874322]
[1734445416854,0.163312,4005.6,4004.6,0.70561755]
[1734445417043,0.163312,4005.6,4003.9,3.44524492]
[1734445417044,0.8012,4005.5,4003.9,0.93768622]
[1734445417243,0.83209905,4005.5,4003.9,0.8161]
[1734445418153,0.83209905,4005.5,4003.4,0.8161]
[1734445418154,0.03089905,4005.5,4003.4,0.8161]
[1734445418466,0.8012,4004.8,4003.3,1.04465857]
[1734445418648,3.29822,4004.8,4003.3,1.04465857]
[1734445418854,0.03029761,4004.7,4003.3,1.04465857]
[1734445421280,0.8012,4004.8,4003.3,1.04465857]
[1734445421675,0.8012,4004.8,4003.2,3.48058728]
[1734445421676,1.04310253,4004.6,4003.2,0.35644463]
[1734445421894,1.24874423,4004.5,4003.1,0.8161]
[1734445422183,0.02890891,4004.5,4003.1,0.8161]
[1734445422387,0.8012,4004.3,4002.7,0.8161]
[1734445422687,3.29889,4003.7,4002.3,0.8161]
[1734445423041,0.02848177,4003.6,4002.3,0.8161]
[1734445423458,0.02848177,4003.6,4002.1,0.12361742]
[1734445424190,2.4979,4003.4,4001.9,0.7845]
[1734445424506,0.02844816,4003.3,4001.9,0.7845]
[1734445425007,0.02844816,4003.3,4002.0,0.3236587]
[1734445425213,0.02844816,4003.3,4002.1,3.02498363]
[1734445425524,0.7515,4004.2,4002.3,0.7845]
[1734445425808,0.7515,4004.0,4002.4,0.3236587]
[1734445426012,0.7962,4003.8,4001.8,0.12303108]
[1734445426156,0.02722882,4003.9,4001.8,0.12303108]
[1734445426157,0.7962,4003.3,4001.8,0.12303108]
[1734445426356,0.02734126,4003.2,4001.8,0.12303108]
[1734445427406,0.7962,4003.3,4001.8,0.12303108]
[1734445427705,0.02734126,4003.2,4001.8,0.42668978]
[1734445427911,0.02734126,4003.2,4001.9,0.45079353]
[1734445428474,0.02734126,4003.2,4001.8,0.12303108]
[1734445428895,0.02734126,4003.2,4001.9,0.8019]
[1734445429469,0.7962,4003.3,4001.9,0.8019]
[1734445429872,1.04310253,4003.8,4001.9,0.8019]
[1734445429873,0.02729606,4003.2,4001.9,0.8019]
[1734445430067,0.02729606,4003.2,4002.0,0.67962633]
[1734445430373,0.02724969,4003.1,4002.3,3.8019]
[1734445430688,0.7962,4003.7,4002.3,3.8019]
[1734445431219,0.02751166,4003.6,4002.4,0.55]
[1734445432071,0.02751166,4003.6,4002.5,1.26571232]
[1734445432272,0.02751166,4003.6,4002.6,1.85233924]
[1734445435226,0.02751166,4003.6,4002.4,1.24243715]
[1734445436388,0.02751166,4003.6,4002.3,0.8019]
[1734445436710,0.7962,4003.7,4002.3,3.8019]
[1734445437095,0.0277678,4003.6,4002.3,3.8019]
[1734445437499,0.7962,4003.7,4002.3,3.8019]
[1734445437826,0.7962,4003.7,4002.3,0.8019]
[1734445437827,0.0277678,4003.6,4002.3,0.8019]
[1734445438135,2.5255378,4003.6,4002.3,0.8019]
[1734445438346,3.29402,4003.5,4001.9,0.8019]
[1734445438851,2.49797,4003.3,4001.9,0.8019]
[1734445439159,2.49802,4003.2,4001.9,0.8019]
[1734445439360,2.49808,4003.1,4001.9,0.8019]
[1734445439701,2.52567123,4003.1,4001.9,0.8019]
[1734445440335,0.7962,4003.0,4001.9,0.8019]
[1734445440648,0.02756882,4002.9,4001.5,0.8019]
[1734445441629,2.52578882,4002.9,4001.5,0.8019]
[1734445441808,2.52578882,4002.9,4001.5,1.46922322]
[1734445442732,0.02756882,4002.9,4001.5,1.46922322]
[1734445442944,0.02756882,4002.9,4001.5,0.8019]
[1734445443145,0.8122,4002.5,4001.5,0.8019]
[1734445443561,0.02665377,4002.4,4001.5,0.8019]
[1734445444214,0.7553,4002.9,4001.5,0.8019]
[1734445444417,0.02646671,4002.3,4001.5,0.8019]
[1734445444652,0.7553,4002.9,4001.6,0.38019]
[1734445444817,0.02637006,4002.2,4001.6,0.38019]
[1734445445018,0.7553,4002.9,4001.6,0.38019]
[1734445445248,0.02635885,4002.1,4001.6,0.38019]
[1734445445468,0.7553,4002.9,4001.7,0.8054]
[1734445445629,0.7553,4002.9,4001.7,0.82308589]
[1734445445854,0.7553,4002.9,4001.7,3.70171718]
[1734445445855,0.02646748,4002.8,4001.7,3.70171718]
[1734445446167,0.02646748,4002.8,4001.8,3.40819072]
[1734445446481,0.7553,4003.2,4001.8,3.40819072]
[1734445447011,0.02665183,4003.1,4001.8,3.40819072]